fUSD/lending_fUSD_20250708
["ID","MTS","AMOUNT","RATE_DAILY","PERIOD"]
[370433248,1752017445053,-460.0,0.00024657,2]
[370433250,1752017445062,-909.83,0.00024657,2]
[370433252,1752017445072,-460.0,0.00024657,2]
[370433254,1752017445082,-1920.3,0.00024657,2]
[370433256,1752017445092,-460.0,0.00024657,2]
[370433258,1752017445101,-1968.0,0.00024657,2]
[370433260,1752017445110,-460.0,0.00024657,2]
[370433262,1752017445120,-460.0,0.00024657,2]
[370433264,1752017445129,-460.0,0.00024657,2]
[370433266,1752017445139,-460.0,0.00024657,2]
[370433267,1752017445148,-293.27481257,0.00024657,2]
[370433269,1752017445158,-460.0,0.00024657,2]
[370433271,1752017445168,-483.69,0.00024657,2]
[370433273,1752017445177,-490.0,0.00024657,2]
[370433275,1752017445186,-460.0,0.00024657,2]
[370433277,1752017445196,-460.0,0.00024657,2]
[370433279,1752017445205,-1227.64,0.00024657,2]
[370433281,1752017445214,-669.55,0.00024657,2]
[370433283,1752017445224,-483.23,0.00024657,2]
[370433285,1752017445233,-1012.7,0.00024657,2]
[370433287,1752017445242,-471.66,0.00024657,2]
[370433290,1752017445252,-460.0,0.00024657,2]
[370433293,1752017445261,-460.0,0.00024657,2]
[370433295,1752017445271,-597.37140132,0.00024657,2]
[370433297,1752017445280,-1066.16,0.00024657,2]
[370433299,1752017445289,-579.46,0.00024657,2]
[370433301,1752017445299,-398.8935678,0.00024657,2]
[370433303,1752017445310,-1406.35,0.00024657,2]
[370433305,1752017445319,-552.85,0.00024657,2]
[370433307,1752017445328,-834.97,0.00024657,2]
[370433309,1752017445338,-460.0,0.00024657,2]
[370433311,1752017445347,-733.61,0.00024657,2]
[370433313,1752017445356,-460.0,0.00024657,2]
[370433315,1752017445367,-460.0,0.00024657,2]
[370433317,1752017445377,-460.0,0.00024657,2]
[370433319,1752017445386,-460.0,0.00024657,2]
[370433321,1752017445396,-460.0,0.00024657,2]
[370433323,1752017445405,-1282.99,0.00024657,2]
[370433325,1752017445415,-261.39335753,0.00024657,2]
[370433326,1752017445424,-608.77,0.00024657,2]
[370433328,1752017445433,-1634.24,0.00024657,2]
[370433330,1752017445443,-460.0,0.00024657,2]
[370433332,1752017445452,-460.0,0.00024657,2]
[370433334,1752017445462,-460.0,0.00024657,2]
[370433336,1752017445471,-1011.54,0.00024657,2]
[370433338,1752017445480,-460.0,0.00024657,2]
[370433340,1752017445490,-740.07,0.00024657,2]
[370433342,1752017445501,-460.0,0.00024657,2]
[370433344,1752017445510,-246.262463,0.00024657,7]
[370433346,1752017445519,-2114.73,0.00024657,2]
[370433348,1752017445528,-460.0,0.00024657,2]
[370433350,1752017445537,-460.0,0.00024657,2]
[370433351,1752017445546,-474.79,0.00024657,2]
[370433353,1752017445556,-460.0,0.00024657,2]
[370433355,1752017445566,-460.0,0.00024657,2]
[370433357,1752017445575,-479.02,0.00024657,2]
[370433359,1752017445585,-2895.92,0.00024657,2]
[370433361,1752017445595,-972.6,0.00024657,2]
[370433363,1752017445605,-460.0,0.00024657,2]
[370433365,1752017445614,-460.0,0.00024657,2]
[370433367,1752017445623,-460.0,0.00024657,2]
[370433369,1752017445633,-460.0,0.00024657,2]
[370433371,1752017445642,-570.01,0.00024657,2]
[370433373,1752017445652,-584.86,0.00024657,2]
[370433375,1752017445662,-460.0,0.00024657,2]
[370433377,1752017445671,-2559.23,0.00024657,2]
[370433379,1752017445680,-691.87,0.00024657,2]
[370433381,1752017445690,-460.0,0.00024657,2]
[370433383,1752017445699,-460.0,0.00024657,2]
[370433385,1752017445711,-1662.89,0.00024657,2]
[370433386,1752017445722,-460.0,0.00024657,2]
[370433388,1752017445731,-460.0,0.00024657,2]
[370433390,1752017445741,-460.0,0.00024657,2]
[370433392,1752017445754,-803.26,0.00024657,2]
[370433394,1752017445763,-460.0,0.00024657,2]
[370433396,1752017445772,-2803.1,0.00024657,2]
[370433398,1752017445782,-460.0,0.00024657,2]
[370433400,1752017445791,-460.0,0.00024657,2]
[370433402,1752017445801,-1108.6,0.00024657,2]
[370433404,1752017445810,-460.0,0.00024657,2]
[370433406,1752017445820,-470.29,0.00024657,2]
[370433408,1752017445829,-460.0,0.00024657,2]
[370433410,1752017445838,-460.0,0.00024657,2]
[370433412,1752017445848,-591.36,0.00024657,2]
[370433414,1752017445857,-1746.08,0.00024657,2]
[370433416,1752017445867,-300.0,0.00024657,2]
[370433418,1752017445881,-1355.77,0.00024657,2]
[370433420,1752017445890,-1763.22,0.00024657,2]
[370433422,1752017445900,-2767.21,0.00024657,2]
[370433424,1752017445909,-460.0,0.00024657,2]
[370433426,1752017445919,-460.0,0.00024657,2]
[370433428,1752017445929,-759.39,0.00024657,2]
[370433430,1752017445938,-460.0,0.00024657,2]
[370433432,1752017445947,-460.0,0.00024657,2]
[370433434,1752017445956,-460.0,0.00024657,2]
[370433436,1752017445965,-460.0,0.00024657,2]
[370433438,1752017445974,-460.0,0.00024657,2]
[370433440,1752017445983,-460.0,0.00024657,2]
[370433442,1752017445993,-1911.69,0.00024657,2]
[370433444,1752017446009,-151.0,0.00024657,7]
[370433446,1752017446019,-460.0,0.00024657,2]
[370433447,1752017446029,-460.0,0.00024657,2]
[370433449,1752017446038,-151.0,0.00024657,7]
[370433451,1752017446048,-460.0,0.00024657,2]
[370433453,1752017446057,-902.65,0.00024657,2]
[370433455,1752017446066,-152.952455,0.00024657,7]
[370433457,1752017446075,-460.0,0.00024657,2]
[370433459,1752017446085,-732.31,0.00024657,2]
[370433461,1752017446095,-460.0,0.00024657,2]
[370433463,1752017446104,-446.89695357,0.00024657,2]
[370433465,1752017446114,-460.0,0.00024657,2]
[370433467,1752017446123,-3238.09,0.00024657,2]
[370433469,1752017446133,-608.12,0.00024657,2]
[370433471,1752017446142,-460.0,0.00024657,2]
[370433473,1752017446152,-523.98,0.00024657,2]
[370433475,1752017446161,-1129.92,0.00024657,2]
[370433477,1752017446172,-460.0,0.00024657,2]
[370433479,1752017446182,-1159.27,0.00024657,2]
[370433481,1752017446191,-1640.07,0.00024657,2]
[370433483,1752017446200,-527.56,0.00024657,2]
[370433485,1752017446210,-587.72669219,0.00024657,2]
[370433487,1752017446219,-493.97,0.00024657,2]
[370433489,1752017446228,-460.0,0.00024657,2]
[370433491,1752017446238,-500.0,0.00024657,2]
[370433492,1752017446251,-602.49,0.00024657,2]
[370433494,1752017446260,-460.0,0.00024657,2]
[370433496,1752017446270,-460.0,0.00024657,2]
[370433498,1752017446280,-466.45,0.00024657,2]
[370433500,1752017446289,-478.19,0.00024657,2]
[370433502,1752017446298,-710.83,0.00024657,2]
[370433504,1752017446307,-460.0,0.00024657,2]
[370433506,1752017446316,-1035.58,0.00024657,2]
[370433508,1752017446326,-692.98,0.00024657,2]
[370433510,1752017446335,-460.0,0.00024657,2]
[370433512,1752017446345,-868.94,0.00024657,2]
[370433514,1752017446354,-460.0,0.00024657,2]
[370433516,1752017446364,-460.0,0.00024657,2]
[370433518,1752017446375,-872.44,0.00024657,2]
[370433520,1752017446384,-460.0,0.00024657,2]
[370433522,1752017446394,-500.0,0.00024657,2]
[370433524,1752017446403,-500.0,0.00024657,2]
[370433526,1752017446412,-500.0,0.00024657,2]
[370433527,1752017446422,-500.0,0.00024657,2]
[370433529,1752017446433,-500.0,0.00024657,2]
[370433531,1752017446444,-500.0,0.00024657,2]
[370433533,1752017446454,-500.0,0.00024657,2]
[370433535,1752017446463,-500.0,0.00024657,2]
[370433537,1752017446473,-460.0,0.00024657,2]
[370433539,1752017446482,-500.0,0.00024657,2]
[370433541,1752017446491,-227.54701653,0.00024657,2]
[370433543,1752017446504,-462.5,0.00024657,2]
[370433545,1752017446513,-460.0,0.00024657,2]
[370433547,1752017446523,-895.46,0.00024657,2]
[370433549,1752017446533,-460.0,0.00024657,2]
[370433551,1752017446542,-586.06809688,0.00024657,2]
[370433553,1752017446552,-564.87997962,0.00024657,2]
[370433555,1752017446561,-842.16,0.00024657,2]
[370433556,1752017446570,-496.63,0.00024657,2]
[370433558,1752017446580,-903.7,0.00024657,2]
[370433560,1752017446589,-675.14,0.00024657,2]
[370433562,1752017446599,-624.62,0.00024657,2]
[370433564,1752017446608,-478.14,0.00024657,2]
[370433566,1752017446618,-460.0,0.00024657,2]
[370433568,1752017446628,-460.0,0.00024657,2]
[370433570,1752017446638,-190.24900507,0.00024657,2]
[370433572,1752017446648,-460.0,0.00024657,2]
[370433574,1752017446658,-1095.61,0.00024657,2]
[370433575,1752017446667,-460.0,0.00024657,2]
[370433576,1752017446678,-1929.96,0.00024657,2]
[370433577,1752017446688,-198.984039,0.00024657,7]
[370433578,1752017446698,-460.0,0.00024657,2]
[370433579,1752017446710,-2045.17,0.00024657,2]
[370433580,1752017446720,-476.96,0.00024657,2]
[370433581,1752017446729,-460.0,0.00024657,2]
[370433582,1752017446739,-460.0,0.00024657,2]
[370433583,1752017446748,-460.0,0.00024657,2]
[370433584,1752017446758,-460.0,0.00024657,2]
[370433585,1752017446768,-748.43,0.00024657,2]
[370433586,1752017446778,-460.0,0.00024657,2]
[370433587,1752017446787,-460.0,0.00024657,2]
[370433589,1752017446797,-460.0,0.00024657,2]
[370433591,1752017446807,-1064.96,0.00024657,2]
[370433593,1752017446817,-851.49,0.00024657,2]
[370433595,1752017446827,-228.60287275,0.00024657,2]
[370433597,1752017446836,-151.0,0.00024657,7]
[370433599,1752017446847,-460.0,0.00024657,2]
[370433601,1752017446856,-1148.9,0.00024657,2]
[370433603,1752017446866,-460.0,0.00024657,2]
[370433605,1752017446875,-460.0,0.00024657,2]
[370433607,1752017446885,-151.0,0.00024657,7]
[370433609,1752017446895,-518.22,0.00024657,2]
[370433611,1752017446904,-151.0,0.00024657,7]
[370433613,1752017446914,-460.0,0.00024657,2]
[370433615,1752017446924,-460.0,0.00024657,2]
[370433617,1752017446934,-684.59,0.00024657,2]
[370433619,1752017446944,-460.0,0.00024657,2]
[370433621,1752017446954,-686.54,0.00024657,2]
[370433637,1752017447090,-460.0,0.00024657,2]
[370433639,1752017447102,-658.36,0.00024657,2]
[370433641,1752017447112,-460.0,0.00024657,2]
[370433643,1752017447122,-91104.72,0.00024657,2]
[370433645,1752017447132,-1466.91,0.00024657,2]
[370433647,1752017447142,-760.35,0.00024657,2]
[370433649,1752017447151,-1263.53,0.00024657,2]
[370433651,1752017447162,-1191.78,0.00024657,2]
[370433653,1752017447171,-1471.22,0.00024657,2]
[370433655,1752017447182,-460.0,0.00024657,2]
[370433657,1752017447191,-518.78,0.00024657,2]
[370433659,1752017447201,-460.0,0.00024657,2]
[370433661,1752017447211,-460.0,0.00024657,2]
[370433663,1752017447220,-460.0,0.00024657,2]
[370433665,1752017447231,-460.0,0.00024657,2]
[370433667,1752017447240,-460.0,0.00024657,2]
[370433669,1752017447251,-528.78,0.00024657,2]
[370433671,1752017447260,-460.0,0.00024657,2]
[370433673,1752017447270,-4465.64,0.00024657,2]
[370433675,1752017447279,-460.0,0.00024657,2]
[370433677,1752017447288,-1440.85,0.00024657,2]
[370433679,1752017447298,-460.0,0.00024657,2]
[370433681,1752017447307,-483.92,0.00024657,2]
[370433683,1752017447316,-526.0,0.00024657,2]
[370433685,1752017447326,-609.45,0.00024657,2]
[370433687,1752017447335,-460.0,0.00024657,2]
[370433690,1752017447344,-500.0,0.00024657,2]
[370433692,1752017447355,-500.0,0.00024657,2]
[370433694,1752017447364,-500.0,0.00024657,2]
[370433696,1752017447374,-500.0,0.00024657,2]
[370433698,1752017447384,-460.0,0.00024657,2]
[370433700,1752017447393,-460.0,0.00024657,2]
[370433702,1752017447403,-2672.44,0.00024657,2]
[370433704,1752017447412,-2739.47,0.00024657,2]
[370433706,1752017447422,-489.74,0.00024657,2]
[370433708,1752017447431,-460.0,0.00024657,2]
[370433710,1752017447441,-460.0,0.00024657,2]
[370433712,1752017447450,-1141.81,0.00024657,2]
[370433714,1752017447460,-1072.83,0.00024657,2]
[370433716,1752017447470,-460.0,0.00024657,2]
[370433718,1752017447479,-552.29,0.00024657,2]
[370433720,1752017447489,-460.0,0.00024657,2]
[370433722,1752017447498,-460.0,0.00024657,2]
[370433724,1752017447508,-460.0,0.00024657,2]
[370433726,1752017447517,-551.560692,0.00024657,2]
[370433728,1752017447527,-460.0,0.00024657,2]
[370433730,1752017447536,-460.0,0.00024657,2]
[370433732,1752017447546,-460.0,0.00024657,2]
[370433734,1752017447555,-1230.93,0.00024657,2]
[370433736,1752017447564,-547.97,0.00024657,2]
[370433738,1752017447574,-527.82,0.00024657,2]
[370433740,1752017447583,-460.0,0.00024657,2]
[370433742,1752017447593,-460.0,0.00024657,2]
[370433744,1752017447602,-460.0,0.00024657,2]
[370433746,1752017447612,-151.0,0.00024657,7]
[370433748,1752017447622,-151.0,0.00024657,7]
[370433750,1752017447631,-492.79,0.00024657,2]
[370433752,1752017447640,-460.0,0.00024657,2]
[370433754,1752017447650,-460.0,0.00024657,2]
[370433756,1752017447659,-460.0,0.00024657,2]
[370433758,1752017447668,-460.0,0.00024657,2]
[370433760,1752017447678,-652.21,0.00024657,2]
[370433762,1752017447687,-792.43,0.00024657,2]
[370433764,1752017447697,-590.4,0.00024657,2]
[370433766,1752017447707,-151.0,0.00024657,7]
[370433768,1752017447720,-587.2,0.00024657,2]
[370433770,1752017447729,-226.654426,0.00024657,7]
[370433772,1752017447739,-975.09,0.00024657,2]
[370433774,1752017447748,-460.0,0.00024657,2]
[370433776,1752017447758,-773.4,0.00024657,2]
[370433778,1752017447767,-620.31,0.00024657,2]
[370433780,1752017447777,-999.68,0.00024657,2]
[370433782,1752017447788,-1476.35,0.00024657,2]
[370433784,1752017447798,-460.0,0.00024657,2]
[370433786,1752017447807,-460.0,0.00024657,2]
[370433788,1752017447816,-460.0,0.00024657,2]
[370433790,1752017447825,-800.1,0.00024657,2]
[370433792,1752017447835,-460.0,0.00024657,2]
[370433794,1752017447844,-462.99,0.00024657,2]
[370433796,1752017447853,-460.0,0.00024657,2]
[370433798,1752017447863,-1169.13,0.00024657,2]
[370433800,1752017447874,-2477.07,0.00024657,2]
[370433802,1752017447883,-631.41,0.00024657,2]
[370433804,1752017447893,-460.0,0.00024657,2]
[370433806,1752017447902,-1718.63,0.00024657,2]
[370433808,1752017447912,-1298.58,0.00024657,2]
[370433810,1752017447923,-460.0,0.00024657,2]
[370433812,1752017447932,-460.0,0.00024657,2]
[370433814,1752017447941,-151.0,0.00024657,7]
[370433816,1752017447951,-151.0,0.00024657,7]
[370433818,1752017447960,-460.0,0.00024657,2]
[370433820,1752017447969,-509.41,0.00024657,2]
[370433822,1752017447979,-471.45,0.00024657,2]
[370433824,1752017447988,-697.5,0.00024657,2]
[370433826,1752017447998,-939.61,0.00024657,2]
[370433828,1752017448008,-460.0,0.00024657,2]
[370433830,1752017448017,-460.0,0.00024657,2]
[370433832,1752017448026,-460.0,0.00024657,2]
[370433834,1752017448036,-533.87,0.00024657,2]
[370433836,1752017448045,-830.25,0.00024657,2]
[370433838,1752017448055,-460.0,0.00024657,2]
[370433840,1752017448064,-938.29,0.00024657,2]
[370433842,1752017448075,-460.0,0.00024657,2]
[370433844,1752017448084,-2329.02,0.00024657,2]
[370433846,1752017448094,-460.0,0.00024657,2]
[370433848,1752017448103,-596.26,0.00024657,2]
[370433850,1752017448113,-1626.12,0.00024657,2]
[370433852,1752017448122,-460.0,0.00024657,2]
[370433854,1752017448132,-607.2,0.00024657,2]
[370433856,1752017448142,-2925.45,0.00024657,2]
[370433858,1752017448152,-460.0,0.00024657,2]
[370433860,1752017448162,-460.0,0.00024657,2]
[370433862,1752017448171,-19979.98,0.00024657,2]
[370433864,1752017448182,-460.0,0.00024657,2]
[370433866,1752017448192,-480.25952535,0.00024657,2]
[370433868,1752017448201,-460.0,0.00024657,2]
[370433870,1752017448210,-460.0,0.00024657,2]
[370433872,1752017448220,-1661.76,0.00024657,2]
[370433874,1752017448234,-2330.61,0.00024657,2]
[370433877,1752017448244,-460.0,0.00024657,2]
[370433879,1752017448255,-460.0,0.00024657,2]
[370433881,1752017448265,-1363.12,0.00024657,2]
[370433883,1752017448274,-460.0,0.00024657,2]
[370433885,1752017448284,-2050.84,0.00024657,2]
[370433887,1752017448294,-1852.73,0.00024657,2]
[370433889,1752017448305,-460.0,0.00024657,2]
[370433891,1752017448315,-460.0,0.00024657,2]
[370433893,1752017448325,-460.0,0.00024657,2]
[370433895,1752017448334,-460.0,0.00024657,2]
[370433897,1752017448344,-1618.54,0.00024657,2]
[370433899,1752017448353,-1593.32,0.00024657,2]
[370433901,1752017448363,-3335.83,0.00024657,2]
[370433903,1752017448373,-460.0,0.00024657,2]
[370433905,1752017448382,-781.86,0.00024657,2]
[370433907,1752017448392,-460.0,0.00024657,2]
[370433909,1752017448402,-901.59,0.00024657,2]
[370433911,1752017448411,-460.0,0.00024657,2]
[370433913,1752017448421,-1609.58,0.00024657,2]
[370433915,1752017448431,-688.88,0.00024657,2]
[370433917,1752017448440,-460.0,0.00024657,2]
[370433919,1752017448450,-635.93,0.00024657,2]
[370433921,1752017448459,-460.0,0.00024657,2]
[370433923,1752017448469,-1230.71,0.00024657,2]
[370433925,1752017448479,-7248.89,0.00024657,2]
[370433927,1752017448489,-744.55,0.00024657,2]
[370433929,1752017448499,-2068.84,0.00024657,2]
[370433931,1752017448509,-595.11,0.00024657,2]
[370433933,1752017448518,-460.0,0.00024657,2]
[370433935,1752017448528,-595.11,0.00024657,2]
[370433937,1752017448537,-460.0,0.00024657,2]
[370433939,1752017448548,-1052.34,0.00024657,2]
[370433941,1752017448557,-595.11,0.00024657,2]
[370433942,1752017448567,-595.11,0.00024657,2]
[370433943,1752017448576,-1776.6,0.00024657,2]
[370433944,1752017448585,-595.11,0.00024657,2]
[370433945,1752017448595,-595.11,0.00024657,2]
[370433946,1752017448605,-460.0,0.00024657,2]
[370433947,1752017448614,-460.0,0.00024657,2]
[370433948,1752017448624,-1811.61,0.00024657,2]
[370433949,1752017448634,-3321.23,0.00024657,2]
[370433950,1752017448643,-651.46,0.00024657,2]
[370433951,1752017448653,-966.29,0.00024657,2]
[370433952,1752017448662,-565.76,0.00024657,2]
[370433953,1752017448672,-460.0,0.00024657,2]
[370433954,1752017448682,-460.0,0.00024657,2]
[370433955,1752017448691,-198.18731291,0.00024657,2]
[370433956,1752017448700,-460.0,0.00024657,2]
[370433957,1752017448712,-471.67,0.00024657,2]
[370433958,1752017448722,-2689.96,0.00024657,2]
[370433959,1752017448731,-460.0,0.00024657,2]
[370433960,1752017448741,-3013.25,0.00024657,2]
[370433961,1752017448751,-690.73,0.00024657,2]
[370433962,1752017448760,-460.0,0.00024657,2]
[370433963,1752017448771,-598.79,0.00024657,2]
[370433964,1752017448780,-731.73,0.00024657,2]
[370433965,1752017448790,-17477.14,0.00024657,2]
[370433966,1752017448800,-460.0,0.00024657,2]
[370433967,1752017448809,-460.0,0.00024657,2]
[370433968,1752017448819,-685.02,0.00024657,2]
[370433969,1752017448828,-500.0,0.00024657,2]
[370433970,1752017448838,-500.0,0.00024657,2]
[370433971,1752017448847,-500.0,0.00024657,2]
[370433972,1752017448857,-500.0,0.00024657,2]
[370433973,1752017448867,-500.0,0.00024657,2]
[370433974,1752017448877,-500.0,0.00024657,2]
[370433975,1752017448887,-460.0,0.00024657,2]
[370433976,1752017448897,-500.0,0.00024657,2]
[370433977,1752017448907,-516.64,0.00024657,2]
[370433978,1752017448917,-500.0,0.00024657,2]
[370433979,1752017448927,-917.35,0.00024657,2]
[370433980,1752017448937,-500.0,0.00024657,2]
[370433981,1752017448946,-500.0,0.00024657,2]
[370433982,1752017448956,-500.0,0.00024657,2]
[370433983,1752017448965,-500.0,0.00024657,2]
[370433984,1752017448975,-500.0,0.00024657,2]
[370433985,1752017448984,-460.0,0.00024657,2]
[370433986,1752017448994,-500.0,0.00024657,2]
[370433987,1752017449006,-2225.13,0.00024657,2]
[370433988,1752017449015,-2072.06,0.00024657,2]
[370433989,1752017449025,-497.95,0.00024657,2]
[370433990,1752017449035,-460.0,0.00024657,2]
[370433991,1752017449046,-460.0,0.00024657,2]
[370433992,1752017449056,-460.0,0.00024657,2]
[370433993,1752017449066,-32402.97,0.00024657,2]
[370433994,1752017449075,-235.23028524,0.00024657,2]
[370433995,1752017449085,-460.0,0.00024657,2]
[370433997,1752017449095,-6785.88,0.00024657,2]
[370433999,1752017449106,-781.79,0.00024657,2]
[370434001,1752017449115,-926.36,0.00024657,2]
[370434003,1752017449124,-1245.6,0.00024657,2]
[370434005,1752017449134,-460.0,0.00024657,2]
[370434007,1752017449144,-460.0,0.00024657,2]
[370434009,1752017449154,-460.0,0.00024657,2]
[370434011,1752017449163,-1208.33,0.00024657,2]
[370434013,1752017449172,-460.0,0.00024657,2]
[370434015,1752017449183,-460.0,0.00024657,2]
[370434017,1752017449193,-1995.88,0.00024657,2]
[370434019,1752017449202,-460.0,0.00024657,2]
[370434021,1752017449211,-210.42967381,0.00024657,2]
[370434023,1752017449221,-460.0,0.00024657,2]
[370434048,1752017449580,-857.32,0.00024657,2]
[370434051,1752017449602,-1229.51,0.00024657,2]
[370434053,1752017449614,-1352.73,0.00024657,2]
[370434055,1752017449624,-460.0,0.00024657,2]
[370434057,1752017449633,-460.0,0.00024657,2]
[370434059,1752017449643,-460.0,0.00024657,2]
[370434061,1752017449652,-151.0,0.00024657,7]
[370434063,1752017449663,-151.0,0.00024657,7]
[370434065,1752017449672,-616.24,0.00024657,2]
[370434067,1752017449682,-1896.02,0.00024657,2]
[370434069,1752017449691,-151.0,0.00024657,7]
[370434071,1752017449701,-2665.79,0.00024657,2]
[370434073,1752017449716,-544.35998344,0.00024657,2]
[370434075,1752017449726,-564.15,0.00024657,2]
[370434077,1752017449736,-539.57,0.00024657,2]
[370434079,1752017449746,-560.44,0.00024657,2]
[370434081,1752017449758,-777.34,0.00024657,2]
[370434084,1752017449767,-5087.87,0.00024657,2]
[370434086,1752017449777,-460.0,0.00024657,2]
[370434088,1752017449788,-1651.22,0.00024657,2]
[370434090,1752017449798,-2510.61,0.00024657,2]
[370434092,1752017449808,-544.37,0.00024657,2]
[370434094,1752017449818,-1725.23,0.00024657,2]
[370434096,1752017449827,-889.49,0.00024657,2]
[370434098,1752017449837,-460.0,0.00024657,2]
[370434100,1752017449847,-4600.09,0.00024657,2]
[370434102,1752017449858,-649.66,0.00024657,2]
[370434103,1752017449868,-1523.96,0.00024657,2]
[370434106,1752017449878,-842.712219,0.00024657,7]
[370434108,1752017449887,-859.87,0.00024657,2]
[370434110,1752017449897,-460.0,0.00024657,2]
[370434112,1752017449907,-842.712219,0.00024657,7]
[370434114,1752017449917,-842.712219,0.00024657,7]
[370434116,1752017449926,-6309.43,0.00024657,2]
[370434118,1752017449936,-1137.01,0.00024657,2]
[370434120,1752017449946,-460.0,0.00024657,2]
[370434122,1752017449955,-10321.55,0.00024657,2]
[370434124,1752017449965,-842.712219,0.00024657,7]
[370434126,1752017449974,-842.712219,0.00024657,7]
[370434128,1752017449984,-1129.95,0.00024657,2]
[370434130,1752017449993,-842.712219,0.00024657,7]
[370434132,1752017450004,-460.0,0.00024657,2]
[370434134,1752017450013,-460.0,0.00024657,2]
[370434136,1752017450023,-460.0,0.00024657,2]
[370434138,1752017450032,-1600.31,0.00024657,2]
[370434140,1752017450041,-460.0,0.00024657,2]
[370434142,1752017450051,-460.0,0.00024657,2]
[370434144,1752017450060,-460.0,0.00024657,2]
[370434146,1752017450070,-460.0,0.00024657,2]
[370434148,1752017450080,-7229.21,0.00024657,2]
[370434150,1752017450089,-393.38527255,0.00024657,2]
[370434152,1752017450099,-1000.75,0.00024657,2]
[370434154,1752017450109,-1223.51,0.00024657,2]
[370434156,1752017450119,-2203.5,0.00024657,2]
[370434158,1752017450128,-460.0,0.00024657,2]
[370434160,1752017450138,-6702.12,0.00024657,2]
[370434162,1752017450148,-529.76,0.00024657,2]
[370434164,1752017450157,-460.0,0.00024657,2]
[370434166,1752017450167,-1817.83,0.00024657,2]
[370434168,1752017450176,-460.0,0.00024657,2]
[370434170,1752017450186,-861.68,0.00024657,2]
[370434172,1752017450195,-460.0,0.00024657,2]
[370434174,1752017450205,-460.0,0.00024657,2]
[370434176,1752017450214,-536.07,0.00024657,2]
[370434178,1752017450223,-2948.34,0.00024657,2]
[370434179,1752017450232,-10963.21,0.00024657,2]
[370434182,1752017450242,-2718.46,0.00024657,2]
[370434183,1752017450252,-460.0,0.00024657,2]
[370434185,1752017450261,-460.0,0.00024657,2]
[370434187,1752017450272,-1515.03,0.00024657,2]
[370434190,1752017450281,-460.0,0.00024657,2]
[370434192,1752017450292,-469.03,0.00024657,2]
[370434194,1752017450301,-460.0,0.00024657,2]
[370434196,1752017450311,-460.0,0.00024657,2]
[370434197,1752017450322,-460.0,0.00024657,2]
[370434199,1752017450333,-539.49,0.00024657,2]
[370434202,1752017450343,-460.0,0.00024657,2]
[370434204,1752017450352,-1953.93,0.00024657,2]
[370434206,1752017450364,-460.0,0.00024657,2]
[370434208,1752017450374,-797.71,0.00024657,2]
[370434209,1752017450386,-460.0,0.00024657,2]
[370434212,1752017450396,-4572.14,0.00024657,2]
[370434214,1752017450406,-460.0,0.00024657,2]